fUSD/lending_fUSD_20260116
["ID","MTS","AMOUNT","RATE_DAILY","PERIOD"]
[402194213,1768585842446,-250.0,0.00015609,2]
[402194214,1768585842455,-548.44734466,0.00015609,2]
[402194215,1768585842466,-250.0,0.00015609,2]
[402194216,1768585842475,-250.0,0.00015609,2]
[402194217,1768585842485,-250.0,0.00015609,2]
[402194219,1768585842494,-250.0,0.00015609,2]
[402194221,1768585842503,-322.6107,0.00015609,2]
[402194222,1768585842514,-1239.0,0.00015609,2]
[402194223,1768585842524,-306.14380651,0.00015609,2]
[402194224,1768585842534,-2000.0,0.00015609,2]
[402194225,1768585842545,-2000.0,0.00015609,2]
[402194226,1768585842555,-2000.0,0.00015609,2]
[402194227,1768585842565,-2000.0,0.00015609,2]
[402194229,1768585842574,-2000.0,0.00015609,2]
[402194230,1768585842584,-2000.0,0.00015609,2]
[402194231,1768585842593,-500.0,0.00015609,2]
[402194232,1768585842603,-250.0,0.00015609,2]
[402194233,1768585842612,-2000.0,0.00015609,2]
[402194234,1768585842622,-500.0,0.00015609,2]
[402194235,1768585842631,-250.0,0.00015609,2]
[402194237,1768585842640,-2000.0,0.00015609,2]
[402194239,1768585842650,-250.0,0.00015609,2]
[402194241,1768585842659,-250.0,0.00015609,2]
[402194243,1768585842669,-250.0,0.00015609,2]
[402194245,1768585842679,-250.0,0.00015609,2]
[402194246,1768585842689,-250.0,0.00015609,2]
[402194247,1768585842699,-250.0,0.00015609,2]
[402194248,1768585842708,-250.0,0.00015609,2]
[402194249,1768585842719,-1000.0,0.00015609,2]
[402194250,1768585842728,-250.0,0.00015609,2]
[402194251,1768585842738,-620.0,0.00015609,2]
[402194252,1768585842747,-1000.0,0.00015609,2]
[402194253,1768585842756,-250.0,0.00015609,2]
[402194254,1768585842766,-1000.0,0.00015609,2]
[402194255,1768585842775,-1000.0,0.00015609,2]
[402194256,1768585842784,-1000.0,0.00015609,2]
[402194257,1768585842794,-1000.0,0.00015609,2]
[402194258,1768585842803,-1000.0,0.00015609,2]
[402194259,1768585842813,-500.0,0.00015609,2]
[402194260,1768585842822,-1000.0,0.00015609,2]
[402194261,1768585842831,-500.0,0.00015609,2]
[402194262,1768585842840,-1000.0,0.00015609,2]
[402194263,1768585842850,-500.0,0.00015609,2]
[402194264,1768585842859,-1000.0,0.00015609,2]
[402194265,1768585842869,-500.0,0.00015609,2]
[402194266,1768585842878,-1000.0,0.00015609,2]
[402194267,1768585842893,-500.0,0.00015609,2]
[402194268,1768585842903,-500.0,0.00015609,2]
[402194269,1768585842912,-500.0,0.00015609,2]
[402194270,1768585842922,-500.0,0.00015609,2]
[402194271,1768585842933,-500.0,0.00015609,2]
[402194272,1768585842943,-500.0,0.00015609,2]
[402194273,1768585842952,-500.0,0.00015609,2]
[402194274,1768585842962,-500.0,0.0001563,2]
[402194275,1768585842971,-500.0,0.0001563,2]
[402194276,1768585842981,-500.0,0.0001563,2]
[402194277,1768585842990,-500.0,0.0001563,2]
[402194279,1768585843000,-500.0,0.0001563,2]
[402194281,1768585843009,-500.0,0.0001563,2]
[402194283,1768585843019,-500.0,0.0001563,2]
[402194284,1768585843028,-500.0,0.0001563,2]
[402194285,1768585843037,-159.7,0.0001566,2]
[402194286,1768585843047,-151.0,0.00015679,2]
[402194287,1768585843056,-500.0,0.00015693,2]
[402194288,1768585843066,-672.92,0.00015698,2]
[402194289,1768585843075,-345.0,0.00015753,2]
[402194290,1768585843085,-456.95452403,0.00015773,2]
[402194291,1768585843094,-501.0268674,0.00015773,2]
[402194292,1768585843103,-500.0,0.00015773,2]
[402194293,1768585843112,-500.0,0.00015773,2]
[402194294,1768585843122,-501.94559639,0.00015773,2]
[402194295,1768585843132,-234.02633366,0.00015773,2]
[402194296,1768585843141,-502.20709128,0.00015773,2]
[402194297,1768585843151,-500.0,0.00015773,2]
[402194299,1768585843160,-500.0,0.00015773,2]
[402194300,1768585843169,-500.0,0.00015773,2]
[402194301,1768585843179,-500.0,0.00015773,2]
[402194302,1768585843188,-500.0,0.00015773,2]
[402194304,1768585843197,-500.74973973,0.00015773,2]
[402194306,1768585843206,-303.17,0.00015788,2]
[402194308,1768585843215,-13108.08453336,0.00015819,2]
[402194310,1768585843225,-151.0,0.00015819,2]
[402194312,1768585843234,-151.0,0.00015819,2]
[402194314,1768585843243,-151.0,0.00015819,2]
[402194316,1768585843252,-741.07944102,0.00015861,2]
[402194317,1768585843261,-166.66,0.00015877,2]
[402194318,1768585843270,-151.0,0.000159,2]
[402194319,1768585843279,-430.947851,0.000159,2]
[402194320,1768585843288,-430.947851,0.000159,2]
[402194321,1768585843298,-430.947851,0.000159,2]
[402194322,1768585843307,-430.947851,0.000159,2]
[402194323,1768585843318,-23700.0,0.000159,5]
[402194324,1768585843328,-174.68194074,0.000159,2]
[402194325,1768585843337,-473.45,0.000159,2]
[402194326,1768585843346,-300.0,0.00015911,2]
[402194327,1768585843355,-195.0,0.00015911,2]
[402194328,1768585843365,-250.0,0.00015911,2]
[402194329,1768585843374,-300.0,0.00015911,2]
[402194330,1768585843383,-1346.95,0.00015941,2]
[402194331,1768585843393,-672.92,0.00015972,2]
[402194332,1768585843402,-263.034611,0.00015997,2]
[402194333,1768585843411,-500.0,0.00015999,2]
[402194334,1768585843421,-500.0,0.00015999,2]
[402194335,1768585843430,-150028.98919971,0.00016,2]
[402194336,1768585843440,-370961.11683996,0.00016,4]
[402194337,1768585843449,-157.412828,0.00016,2]
[402194338,1768585843459,-153.499055,0.00016,2]
[402194339,1768585843468,-151.0,0.00016,2]
[402194340,1768585843477,-151.0,0.00016,2]
[402194341,1768585843486,-252.838268,0.00016,2]
[402194342,1768585843495,-151.0,0.00016,2]
[402194343,1768585843504,-154.260862,0.00016,2]
[402194344,1768585843513,-430.947851,0.00016,2]
[402194345,1768585843523,-430.947851,0.00016,2]
[402194346,1768585843532,-430.947851,0.00016,2]
[402194347,1768585843542,-430.947851,0.00016,2]
[402194348,1768585843552,-430.947851,0.00016,2]
[402194349,1768585843561,-430.947851,0.00016,2]
[402194350,1768585843570,-430.947851,0.00016,2]
[402194351,1768585843580,-430.947851,0.00016,2]
[402194352,1768585843589,-153.26114,0.00016,2]
[402194353,1768585843599,-151.0,0.00016,2]
[402194354,1768585843608,-151.0,0.00016,2]
[402194355,1768585843618,-154.137077,0.00016,3]
[402194356,1768585843627,-151.0,0.00016,2]
[402194357,1768585843636,-155.949763,0.00016,2]
[402194358,1768585843645,-273.52,0.00016072,2]
[402194359,1768585843656,-166.66,0.00016107,2]
[402194360,1768585843665,-13108.08453336,0.00016116,2]
[402194361,1768585843674,-500.0,0.00016137,2]
[402194362,1768585843683,-595.37131296,0.00016157,2]
[402194363,1768585843692,-510.0,0.00016172,2]
[402194364,1768585843701,-166.66,0.00016186,2]
[402194365,1768585843710,-500.0,0.00016199,2]
[402194366,1768585843719,-500.0,0.00016199,2]
[402194367,1768585843729,-500.0,0.00016199,2]
[402194368,1768585843739,-500.0,0.00016199,2]
[402194369,1768585843749,-500.0,0.00016199,2]
[402194370,1768585843759,-500.0,0.00016199,2]
[402194371,1768585843769,-500.0,0.00016199,2]
[402194372,1768585843778,-570.42395525,0.00016199,2]
[402194373,1768585843787,-500.0,0.00016199,2]
[402194374,1768585843798,-500.0,0.00016241,2]
[402194375,1768585843809,-672.92,0.00016246,2]
[402194376,1768585843819,-741.07944102,0.00016269,2]
[402194377,1768585843829,-174.68194074,0.000163,2]
[402194378,1768585843838,-1000.0,0.00016321,2]
[402194379,1768585843848,-1000.0,0.00016321,2]
[402194380,1768585843857,-1000.0,0.00016321,2]
[402194381,1768585843867,-1000.0,0.00016321,2]
[402194382,1768585844134,-1006.54498696,0.00016321,2]
[402194383,1768585844144,-1000.0,0.00016321,2]
[402194384,1768585844154,-1000.0,0.00016321,2]
[402194385,1768585844163,-7398.0,0.00016349,2]
[402194386,1768585844172,-250.0,0.00016411,2]
[402194387,1768585844181,-151.0,0.00016413,2]
[402194388,1768585844190,-430.947851,0.00016413,2]
[402194389,1768585844199,-430.947851,0.00016413,2]
[402194390,1768585844208,-430.947851,0.00016413,2]
[402194391,1768585844217,-430.947851,0.00016413,2]
[402194392,1768585844226,-13108.08453336,0.00016413,2]
[402194393,1768585844236,-500.0,0.00016438,2]
[402194394,1768585844246,-500.0,0.00016438,2]
[402194395,1768585844255,-500.0,0.00016438,2]
[402194396,1768585844264,-500.0,0.00016438,2]
[402194397,1768585844274,-500.0,0.00016438,2]
[402194398,1768585844283,-500.0,0.00016438,2]
[402194399,1768585844292,-500.0,0.00016438,2]
[402194400,1768585844301,-500.0,0.00016438,2]
[402194401,1768585844310,-500.0,0.00016438,2]
[402194402,1768585844320,-500.0,0.00016438,2]
[402194403,1768585844330,-500.0,0.00016438,2]
[402194404,1768585844339,-500.0,0.00016438,2]
[402194405,1768585844349,-500.0,0.00016438,2]
[402194406,1768585844359,-500.0,0.00016438,2]
[402194407,1768585844368,-500.0,0.00016438,2]
[402194408,1768585844378,-500.0,0.00016438,2]
[402194409,1768585844387,-500.0,0.00016438,2]
[402194410,1768585844396,-500.0,0.00016438,2]
[402194411,1768585844406,-500.0,0.00016438,2]
[402194412,1768585844415,-500.0,0.00016438,2]
[402194413,1768585844425,-500.0,0.00016438,2]
[402194414,1768585844434,-500.0,0.00016438,2]
[402194415,1768585844444,-500.0,0.00016438,2]
[402194416,1768585844455,-603.69674799,0.00016438,2]
[402194417,1768585844465,-500.0,0.00016438,2]
[402194418,1768585844474,-500.0,0.00016438,2]
[402194419,1768585844483,-500.0,0.00016438,2]
[402194420,1768585844492,-500.0,0.00016438,2]
[402194421,1768585844503,-500.0,0.00016438,2]
[402194422,1768585844512,-500.0,0.00016438,2]
[402194423,1768585844521,-500.0,0.00016438,2]
[402194424,1768585844531,-500.0,0.00016438,2]
[402194425,1768585844540,-500.0,0.00016438,2]
[402194426,1768585844549,-500.0,0.00016438,2]
[402194427,1768585844562,-500.0,0.00016438,2]
[402194428,1768585844572,-500.0,0.00016438,2]
[402194429,1768585844581,-500.0,0.00016438,2]
[402194430,1768585844591,-500.0,0.00016438,2]
[402194431,1768585844600,-500.0,0.00016438,2]
[402194432,1768585844610,-500.0,0.00016438,2]
[402194433,1768585844619,-500.0,0.00016438,2]
[402194434,1768585844629,-500.0,0.00016438,2]
[402194435,1768585844638,-500.0,0.00016438,2]
[402194436,1768585844647,-500.0,0.00016438,2]
[402194437,1768585844657,-500.0,0.00016438,2]
[402194438,1768585844667,-500.0,0.00016438,2]
[402194439,1768585844676,-500.0,0.00016438,2]
[402194440,1768585844685,-500.0,0.00016438,2]
[402194441,1768585844694,-500.0,0.00016438,2]
[402194442,1768585844703,-500.0,0.00016438,2]
[402194443,1768585844712,-500.0,0.00016438,2]
[402194444,1768585844722,-500.0,0.00016438,2]
[402194445,1768585844731,-500.0,0.00016438,2]
[402194446,1768585844740,-500.0,0.00016438,2]
[402194447,1768585844750,-500.0,0.00016438,2]
[402194448,1768585844760,-500.0,0.00016438,2]
[402194449,1768585844769,-500.0,0.00016438,2]
[402194450,1768585844779,-500.0,0.00016438,2]
[402194451,1768585844788,-603.69674799,0.00016438,2]
[402194452,1768585844798,-500.0,0.00016438,2]
[402194453,1768585844807,-500.0,0.00016438,2]
[402194454,1768585844817,-500.0,0.00016438,2]
[402194455,1768585844826,-500.0,0.00016438,2]
[402194456,1768585844836,-500.0,0.00016438,2]
[402194457,1768585844845,-500.0,0.00016438,2]
[402194458,1768585844854,-500.0,0.00016438,2]
[402194459,1768585844864,-500.0,0.00016438,2]
[402194460,1768585844874,-500.0,0.00016438,2]
[402194461,1768585844885,-500.0,0.00016438,2]
[402194462,1768585844899,-500.0,0.00016438,2]
[402194463,1768585844909,-500.0,0.00016438,2]
[402194464,1768585844918,-500.0,0.00016438,2]
[402194465,1768585844930,-500.0,0.00016438,2]
[402194466,1768585844939,-500.0,0.00016438,2]
[402194467,1768585844949,-500.0,0.00016438,2]
[402194468,1768585844959,-500.0,0.00016438,2]
[402194469,1768585844970,-500.0,0.00016438,2]
[402194470,1768585844979,-500.0,0.00016438,2]
[402194471,1768585844989,-500.0,0.00016438,2]
[402194472,1768585844998,-500.0,0.00016438,2]
[402194473,1768585845008,-500.0,0.00016438,2]
[402194474,1768585845017,-500.0,0.00016438,2]
[402194475,1768585845026,-500.0,0.00016438,2]
[402194476,1768585845036,-500.0,0.00016438,2]
[402194477,1768585845046,-500.0,0.00016438,2]
[402194478,1768585845055,-500.0,0.00016438,2]
[402194479,1768585845064,-500.0,0.00016438,2]
[402194480,1768585845074,-500.0,0.00016438,2]
[402194481,1768585845083,-151.616983,0.00016438,2]
[402194482,1768585845093,-1680.0,0.00016438,2]
[402194483,1768585845102,-300.0,0.00016438,3]
[402194484,1768585845111,-300.0,0.00016438,3]
[402194485,1768585845121,-300.0,0.00016438,3]
[402194486,1768585845130,-300.0,0.00016438,3]
[402194487,1768585845140,-300.0,0.00016438,3]
[402194488,1768585845152,-151.0,0.00016438,2]
[402194489,1768585845161,-151.0,0.00016438,2]
[402194490,1768585845171,-151.0,0.00016438,2]
[402194491,1768585845180,-280.836514,0.00016438,2]
[402194492,1768585845189,-280.836514,0.00016438,2]
[402194493,1768585845199,-280.836514,0.00016438,2]
[402194494,1768585845209,-280.836514,0.00016438,2]
[402194495,1768585845218,-280.836514,0.00016438,2]
[402194496,1768585845227,-280.836514,0.00016438,2]
[402194497,1768585845236,-280.836514,0.00016438,2]
[402194498,1768585845246,-280.836514,0.00016438,2]
[402194499,1768585845255,-280.836514,0.00016438,2]
[402194500,1768585845264,-280.836514,0.00016438,2]
[402194501,1768585845274,-280.836514,0.00016438,2]
[402194502,1768585845282,-280.836514,0.00016438,2]
[402194503,1768585845291,-280.836514,0.00016438,2]
[402194504,1768585845300,-280.836514,0.00016438,2]
[402194505,1768585845311,-280.836514,0.00016438,2]
[402194506,1768585845321,-280.836514,0.00016438,2]
[402194507,1768585845330,-211.77117296,0.00016438,2]
[402194508,1768585845341,-193.0,0.00016438,2]
[402194509,1768585845350,-300.0,0.00016438,2]
[402194510,1768585845359,-2500.0,0.00016438,2]
[402194511,1768585845369,-600.0,0.00016438,2]
[402194512,1768585845380,-165.04,0.0001644,2]
[402194513,1768585845389,-1000.0,0.00016515,2]
[402194514,1768585845399,-672.92,0.0001652,2]
[402194516,1768585845410,-1280.0,0.00016522,2]
[402194518,1768585845420,-195.0,0.00016546,2]
[402194520,1768585845430,-250.0,0.00016546,2]
[402194522,1768585845440,-966.74718609,0.0001661,2]
[402194524,1768585845449,-300.0,0.00016659,2]
[402194525,1768585845460,-195.0,0.00016659,2]
[402194526,1768585845470,-300.0,0.00016659,2]
[402194527,1768585845480,-185.52911474,0.00016659,2]
[402194528,1768585845490,-195.0,0.00016659,2]
[402194529,1768585845500,-250.0,0.00016659,2]
[402194531,1768585845509,-325.45253772,0.00016659,2]
[402194532,1768585845518,-159.16048086,0.00016659,2]
[402194533,1768585845529,-1346.95,0.00016666,2]
[402194534,1768585845538,-741.07944102,0.00016676,2]
[402194535,1768585845547,-174.68194074,0.000167,2]
[402194536,1768585845557,-617.40005154,0.00016705,2]
[402194537,1768585845566,-13108.08453336,0.00016711,2]
[402194538,1768585845575,-151.0,0.00016711,2]
[402194539,1768585845586,-430.947851,0.00016711,2]
[402194540,1768585845596,-430.947851,0.00016711,2]
[402194541,1768585845605,-430.947851,0.00016711,2]
[402194542,1768585845614,-430.94785,0.00016711,2]
[402194543,1768585845624,-170.61,0.00016712,2]
[402194544,1768585845633,-166.66,0.00016721,2]
[402194545,1768585845642,-15084.69728878,0.00016761,2]
[402194546,1768585845652,-500.0,0.00016767,2]
[402194547,1768585845661,-371.0,0.00016771,2]
[402194548,1768585845671,-371.0,0.00016785,2]
[402194549,1768585845680,-672.92,0.00016794,2]
[402194550,1768585845690,-371.0,0.00016818,2]
[402194551,1768585845699,-371.0,0.00016826,2]
[402194552,1768585845709,-1000.0,0.0001685,2]
[402194553,1768585845718,-506.18752116,0.00016868,2]
[402194554,1768585845727,-1500.0,0.00016868,2]
[402194555,1768585845737,-427.25960188,0.00016868,2]
[402194556,1768585845746,-1500.0,0.00016868,2]
[402194557,1768585845756,-1500.0,0.00016868,2]
[402194558,1768585845765,-500.0,0.00016868,2]
[402194559,1768585845775,-371.0,0.00016871,2]
[402194560,1768585845784,-273.52,0.00016875,2]
[402194561,1768585845793,-280.836514,0.000169,2]
[402194562,1768585845803,-280.836514,0.000169,2]
[402194563,1768585845812,-280.836514,0.000169,2]
[402194564,1768585845821,-280.83651,0.000169,2]
[402194565,1768585845830,-334.5472959,0.00016978,2]
[402194566,1768585845841,-1239.0,0.00016978,2]
[402194567,1768585845850,-642.94,0.00016978,2]
[402194568,1768585845860,-644.66158455,0.00016999,2]
[402194569,1768585845869,-500.0,0.00016999,2]
[402194570,1768585845879,-500.0,0.00016999,2]
[402194571,1768585845891,-500.0,0.00016999,2]
[402194572,1768585845901,-500.0,0.00016999,2]
[402194573,1768585845911,-500.0,0.00016999,2]
[402194574,1768585845921,-250.0,0.00017,2]
[402194575,1768585845932,-371.0,0.00017002,2]
[402194576,1768585845942,-13108.08453336,0.00017008,2]
[402194577,1768585845951,-371.0,0.00017013,2]
[402194578,1768585845960,-371.0,0.00017032,2]
[402194579,1768585845971,-500.0,0.00017048,2]
[402194580,1768585845981,-243.0,0.00017049,2]
[402194581,1768585845990,-303.17,0.00017074,2]
[402194582,1768585845999,-371.0,0.00017084,2]
[402194583,1768585846010,-741.07944102,0.00017084,2]
[402194584,1768585846021,-174.68194074,0.000171,2]
[402194585,1768585846031,-150.0,0.00017106,2]
[402194586,1768585846040,-1000.0,0.00017112,2]
[402194587,1768585846049,-164.48,0.00017131,2]
[402194588,1768585846059,-1280.0,0.00017171,2]
[402194589,1768585846068,-1280.0,0.00017176,2]
[402194590,1768585846077,-640.24385345,0.00017253,2]
[402194591,1768585846087,-371.0,0.0001726,2]
[402194592,1768585846097,-15885.62294395,0.00017266,2]
[402194593,1768585846106,-473.45,0.0001727,2]
[402194594,1768585846115,-35600.0,0.000173,6]
[402194595,1768585846126,-13108.08453336,0.00017305,2]
[402194596,1768585846136,-1280.0,0.00017334,2]
[402194597,1768585846148,-166.66,0.00017335,2]
[402194598,1768585846158,-1280.0,0.00017342,2]
[402194599,1768585846167,-1280.0,0.00017343,2]
[402194600,1768585846178,-1346.95,0.00017391,2]
[402194601,1768585846188,-866.0,0.00017391,2]
[402194602,1768585846198,-47500.0,0.000174,6]
[402194603,1768585846209,-2000.0,0.00017416,2]
[402194604,1768585846220,-1000.0,0.00017416,2]
[402194605,1768585846230,-2000.0,0.00017416,2]
[402194606,1768585846241,-14603.0,0.00017479,2]
[402194607,1768585846250,-30478.0,0.00017479,2]
[402194608,1768585846260,-500.0,0.0001748,2]
[402194609,1768585846270,-150.08464366,0.0001748,2]
[402194610,1768585846280,-500.0,0.0001748,2]
[402194611,1768585846289,-1032.0,0.0001748,2]
[402194612,1768585846298,-741.07944102,0.00017492,2]
[402194614,1768585846308,-1602.74427831,0.000175,2]
[402194617,1768585846317,-2000.0,0.000175,2]
[402194619,1768585846327,-174.68194074,0.000175,2]
[402194620,1768585846336,-59400.0,0.000175,6]
[402194622,1768585846345,-303.17,0.00017518,2]
[402194624,1768585846355,-500.0,0.00017535,2]
[402194626,1768585846365,-500.0,0.00017535,2]
[402194628,1768585846374,-1032.0,0.00017535,2]
[402194631,1768585846384,-3471.0,0.00017535,2]
[402194633,1768585846393,-1331.0,0.00017535,2]
[402194635,1768585846402,-1423.162,0.00017535,2]
[402194637,1768585846412,-1268.0,0.00017535,2]
[402194639,1768585846421,-412.0,0.00017535,2]
[402194641,1768585846431,-6559.0,0.00017535,2]
[402194643,1768585846440,-4824.0,0.00017535,2]
[402194645,1768585846449,-566.0,0.00017535,2]
[402194647,1768585846458,-164.48,0.00017552,2]
[402194648,1768585846468,-15885.62294395,0.00017583,2]
[402194649,1768585846477,-500.0,0.0001759,2]
[402194651,1768585846560,-500.0,0.0001759,2]
[402194653,1768585846571,-1032.0,0.0001759,2]
[402194654,1768585846580,-11800.0,0.000176,6]
[402194655,1768585846590,-13108.08453336,0.00017603,2]
[402194656,1768585846600,-159.7,0.00017618,2]
[402194657,1768585846610,-331.02630933,0.0001764,2]
[402194658,1768585846619,-150.0,0.00017642,2]
[402194659,1768585846629,-500.0,0.00017644,2]
[402194660,1768585846638,-500.0,0.00017644,2]
[402194661,1768585846649,-1032.0,0.00017644,2]
[402194662,1768585846661,-781.0,0.00017647,2]
[402194663,1768585846670,-273.52,0.00017679,2]
[402194664,1768585846680,-500.0,0.00017699,2]
[402194665,1768585846690,-500.0,0.00017699,2]
[402194666,1768585846700,-1032.0,0.00017699,2]
[402194667,1768585846710,-780.72386047,0.000177,2]
[402194668,1768585846719,-11800.0,0.000177,6]
[402194669,1768585846729,-781.0,0.00017708,2]
[402194670,1768585846738,-1000.0,0.00017709,2]
[402194671,1768585846747,-2934.84,0.00017723,2]
[402194672,1768585846757,-188.435,0.00017723,2]
[402194673,1768585846766,-1000.0,0.00017726,2]
[402194674,1768585846776,-1000.0,0.00017726,2]
[402194675,1768585846785,-1000.0,0.0001773,2]
[402194676,1768585846794,-1000.0,0.0001773,2]
[402194677,1768585846803,-500.0,0.00017737,2]
[402194678,1768585846813,-1000.0,0.00017737,2]
[402194679,1768585846822,-1000.0,0.00017737,2]
[402194680,1768585846831,-500.0,0.00017737,2]
[402194681,1768585846840,-500.0,0.00017737,2]
[402194682,1768585846851,-500.0,0.00017737,2]
[402194683,1768585846861,-500.0,0.00017737,2]
[402194684,1768585846871,-1000.0,0.00017738,2]
[402194685,1768585846880,-1280.0,0.0001774,2]
[402194686,1768585846893,-500.0,0.00017754,2]
[402194687,1768585846902,-500.0,0.00017754,2]
[402194688,1768585846911,-1032.0,0.00017754,2]
[402194689,1768585846920,-1000.0,0.00017756,2]
[402194690,1768585846933,-1000.0,0.00017758,2]
[402194691,1768585846942,-1000.0,0.00017764,2]
[402194692,1768585846951,-1000.0,0.00017774,2]
[402194693,1768585846961,-1000.0,0.00017778,2]
[402194694,1768585846972,-1000.0,0.00017781,2]
[402194695,1768585846981,-150.0,0.00017782,2]
[402194696,1768585846990,-335.09669416,0.00017791,2]
[402194697,1768585846999,-1000.0,0.00017798,2]
[402194698,1768585847008,-589.5,0.00017799,2]
[402194699,1768585847017,-530.97394883,0.000178,2]
[402194700,1768585847027,-162.20158758,0.000178,2]
[402194701,1768585847036,-12868.30948442,0.000178,2]
[402194702,1768585847046,-1000.0,0.000178,2]
[402194703,1768585847055,-1674.10648,0.000178,2]
[402194704,1768585847064,-1674.10648,0.000178,2]
[402194705,1768585847073,-1674.10649,0.000178,2]
[402194706,1768585847083,-1674.10649,0.000178,2]
[402194707,1768585847094,-1674.10648,0.000178,2]
[402194708,1768585847104,-1674.10649,0.000178,2]
[402194709,1768585847113,-11800.0,0.000178,6]
[402194710,1768585847123,-663.93287602,0.00017801,2]
[402194711,1768585847132,-1280.0,0.00017805,2]
[402194712,1768585847141,-1000.0,0.00017807,2]
[402194713,1768585847151,-500.0,0.00017809,2]
[402194714,1768585847160,-500.0,0.00017809,2]
[402194715,1768585847170,-1032.0,0.00017809,2]
[402194716,1768585847181,-1000.0,0.00017814,2]
[402194717,1768585847190,-1000.0,0.00017815,2]
[402194718,1768585847199,-1000.0,0.00017815,2]
[402194719,1768585847208,-1000.0,0.00017816,2]
[402194720,1768585847218,-500.0,0.00017819,2]
[402194721,1768585847227,-1000.0,0.00017821,2]
[402194722,1768585847236,-1000.0,0.00017821,2]
[402194723,1768585847245,-1000.0,0.00017824,2]
[402194724,1768585847254,-1000.0,0.00017825,2]
[402194725,1768585847263,-258.01033129,0.00017826,2]
[402194726,1768585847272,-150.0,0.00017827,2]
[402194727,1768585847281,-1000.0,0.00017832,2]
[402194728,1768585847290,-1000.0,0.00017834,2]
[402194729,1768585847299,-1000.0,0.00017836,2]
[402194730,1768585847308,-1000.0,0.00017836,2]
[402194731,1768585847317,-1000.0,0.00017837,2]
[402194732,1768585847326,-1000.0,0.00017837,2]
[402194733,1768585847335,-1000.0,0.00017843,2]
[402194734,1768585847344,-1000.0,0.00017845,2]
[402194735,1768585847354,-335.09669416,0.00017846,2]
[402194736,1768585847363,-1000.0,0.00017848,2]
[402194737,1768585847372,-1000.0,0.00017854,2]
[402194738,1768585847381,-1000.0,0.00017854,2]
[402194739,1768585847391,-1000.0,0.00017856,2]
[402194740,1768585847400,-200.0,0.00017856,2]
[402194741,1768585847409,-1000.0,0.00017858,2]
[402194742,1768585847418,-500.0,0.00017864,2]
[402194743,1768585847427,-500.0,0.00017864,2]
[402194744,1768585847437,-1032.0,0.00017864,2]
[402194745,1768585847446,-1000.0,0.0001787,2]
[402194746,1768585847455,-1000.0,0.00017873,2]
[402194747,1768585847465,-156.71374248,0.00017878,2]
[402194748,1768585847473,-25000.0,0.00017882,3]
[402194749,1768585847482,-1000.0,0.00017883,2]
[402194750,1768585847492,-25000.0,0.00017891,3]
[402194751,1768585847501,-25000.0,0.00017891,3]
[402194752,1768585847514,-1000.0,0.00017892,2]
[402194753,1768585847523,-1000.0,0.00017892,2]
[402194754,1768585847533,-1000.0,0.00017892,2]
[402194755,1768585847542,-1000.0,0.00017899,2]
[402194756,1768585847551,-468.57497061,0.00017899,2]
[402194757,1768585847559,-1000.0,0.00017899,2]